[Event "*** Titled Tuesday Blitz"]
[Site "Chess.com"]
[Date "2020.12.29"]
[Round "9"]
[White "DinaBelenkaya"]
[Black "AlanZhang"]
[Result "0-1"]
[WhiteElo "2366"]
[BlackElo "2145"]
[TimeControl "180+1"]
[EndTime "11:44:23 PST"]
[Termination "AlanZhang won by checkmate"]

1. e4 {[%clk 0:03:00]} 1... e5 {[%clk 0:02:59.6]} 2. Nf3 {[%clk 0:02:55.6]} 2...
Nc6 {[%clk 0:03:00]} 3. d4 {[%clk 0:02:54.7]} 3... exd4 {[%clk 0:02:59.7]} 4.
Nxd4 {[%clk 0:02:55.6]} 4... Bc5 {[%clk 0:02:59.8]} 5. Nb3 {[%clk 0:02:54.9]}
5... Bb6 {[%clk 0:02:59.7]} 6. Nc3 {[%clk 0:02:54.7]} 6... d6 {[%clk 0:03:00.1]}
7. a4 {[%clk 0:02:53]} 7... a5 {[%clk 0:02:58.8]} 8. Bc4 {[%clk 0:02:49.2]} 8...
h6 {[%clk 0:02:56.3]} 9. Qh5 {[%clk 0:02:46.9]} 9... Qe7 {[%clk 0:02:35.4]} 10.
O-O {[%clk 0:02:19.1]} 10... Nf6 {[%clk 0:02:34.9]} 11. Qf3 {[%clk 0:01:57.9]}
11... Ne5 {[%clk 0:02:33.1]} 12. Qe2 {[%clk 0:01:56]} 12... Nxc4 {[%clk
0:02:26.2]} 13. Qxc4 {[%clk 0:01:56.9]} 13... O-O {[%clk 0:02:25.7]} 14. Nd5
{[%clk 0:01:25.1]} 14... Nxd5 {[%clk 0:02:25]} 15. exd5 {[%clk 0:01:23.1]} 15...
Bf5 {[%clk 0:02:22.1]} 16. Bd2 {[%clk 0:01:17.7]} 16... Qf6 {[%clk 0:02:06.9]}
17. c3 {[%clk 0:00:43.8]} 17... Qg6 {[%clk 0:02:02.9]} 18. Qf4 {[%clk
0:00:41.8]} 18... Be4 {[%clk 0:02:00.1]} 19. Qg3 {[%clk 0:00:37.6]} 19... Qxg3
{[%clk 0:01:59.2]} 20. hxg3 {[%clk 0:00:38.5]} 20... Bxd5 {[%clk 0:01:59.7]} 21.
Nd4 {[%clk 0:00:33.4]} 21... Rfe8 {[%clk 0:01:54]} 22. Rfe1 {[%clk 0:00:32.2]}
22... Kh7 {[%clk 0:01:42.3]} 23. Be3 {[%clk 0:00:26.3]} 23... Kg6 {[%clk
0:01:38.8]} 24. Kh2 {[%clk 0:00:16.5]} 24... Re7 {[%clk 0:01:37.8]} 25. b4
{[%clk 0:00:15.3]} 25... axb4 {[%clk 0:01:20.7]} 26. cxb4 {[%clk 0:00:16.2]}
26... Re4 {[%clk 0:01:13.9]} 27. Red1 {[%clk 0:00:11.6]} 27... c6 {[%clk
0:01:02.9]} 28. a5 {[%clk 0:00:11.6]} 28... Bc7 {[%clk 0:01:01.5]} 29. Nc2
{[%clk 0:00:10.9]} 29... Bb3 {[%clk 0:00:58.7]} 30. Rd2 {[%clk 0:00:09.8]} 30...
Bxc2 {[%clk 0:00:58.7]} 31. Rxc2 {[%clk 0:00:10.7]} 31... Rxb4 {[%clk 0:00:59]}
32. Bd2 {[%clk 0:00:06.8]} 32... Rb5 {[%clk 0:00:55]} 33. Rca2 {[%clk
0:00:06.2]} 33... Ra6 {[%clk 0:00:54.2]} 34. Ra4 {[%clk 0:00:06.6]} 34... f5
{[%clk 0:00:48.5]} 35. Bc3 {[%clk 0:00:06.2]} 35... d5 {[%clk 0:00:43.9]} 36.
Kg1 {[%clk 0:00:04.5]} 36... c5 {[%clk 0:00:44]} 37. g4 {[%clk 0:00:04.4]} 37...
d4 {[%clk 0:00:42.9]} 38. Bd2 {[%clk 0:00:04.7]} 38... fxg4 {[%clk 0:00:42.6]}
39. Rc4 {[%clk 0:00:04.6]} 39... Bxa5 {[%clk 0:00:41.6]} 40. Rca4 {[%clk
0:00:04]} 40... Bxd2 {[%clk 0:00:41.1]} 41. Rxa6+ {[%clk 0:00:04.9]} 41... bxa6
{[%clk 0:00:41.5]} 42. Rxa6+ {[%clk 0:00:05.8]} 42... Kf5 {[%clk 0:00:41.9]} 43.
Rd6 {[%clk 0:00:06]} 43... Rb1+ {[%clk 0:00:41.3]} 44. Kh2 {[%clk 0:00:05.6]}
44... Bf4+ {[%clk 0:00:42.2]} 45. g3 {[%clk 0:00:06.5]} 45... Bxd6 {[%clk
0:00:42.5]} 46. f4 {[%clk 0:00:07]} 46... gxf3 {[%clk 0:00:41.9]} 47. Kh3 {[%clk
0:00:07]} 47... Rh1# {[%clk 0:00:41.7]} 0-1

[Event "*** Titled Tuesday Blitz"]
[Site "Chess.com"]
[Date "2020.12.29"]
[Round "9"]
[White "torsten64"]
[Black "FMalexhdez"]
[Result "1/2-1/2"]
[WhiteElo "2135"]
[BlackElo "2267"]
[TimeControl "180+1"]
[EndTime "11:44:24 PST"]
[Termination "Game drawn by agreement"]

1. d4 {[%clk 0:03:00.9]} 1... Nf6 {[%clk 0:02:58.7]} 2. c4 {[%clk 0:03:00.2]}
2... e6 {[%clk 0:02:59]} 3. Nf3 {[%clk 0:02:59.2]} 3... b6 {[%clk 0:02:56.6]} 4.
g3 {[%clk 0:02:58.6]} 4... Bb7 {[%clk 0:02:57]} 5. Bg2 {[%clk 0:02:57.9]} 5...
c5 {[%clk 0:02:56.9]} 6. d5 {[%clk 0:02:53.5]} 6... exd5 {[%clk 0:02:56.1]} 7.
Nh4 {[%clk 0:02:53]} 7... g6 {[%clk 0:02:56]} 8. Nc3 {[%clk 0:02:51.3]} 8... Bg7
{[%clk 0:02:55.2]} 9. Nxd5 {[%clk 0:02:48]} 9... Nxd5 {[%clk 0:02:52.5]} 10.
cxd5 {[%clk 0:02:47]} 10... O-O {[%clk 0:02:49.1]} 11. O-O {[%clk 0:02:46.5]}
11... d6 {[%clk 0:02:47.6]} 12. Nf3 {[%clk 0:02:41.8]} 12... Nd7 {[%clk
0:02:47]} 13. Bg5 {[%clk 0:02:37.3]} 13... Nf6 {[%clk 0:02:35.3]} 14. Re1 {[%clk
0:02:26.4]} 14... h6 {[%clk 0:02:32.6]} 15. Bxf6 {[%clk 0:02:23.2]} 15... Qxf6
{[%clk 0:02:29.8]} 16. Rb1 {[%clk 0:02:15]} 16... Rfe8 {[%clk 0:02:28.5]} 17. e4
{[%clk 0:02:14.3]} 17... Ba6 {[%clk 0:02:19.7]} 18. b3 {[%clk 0:02:11.4]} 18...
Re7 {[%clk 0:02:14.8]} 19. Qc2 {[%clk 0:02:07.8]} 19... Rae8 {[%clk 0:02:12.5]}
20. Nd2 {[%clk 0:02:06.5]} 20... Qd4 {[%clk 0:02:01.4]} 21. Nc4 {[%clk
0:01:57.5]} 21... Bxc4 {[%clk 0:01:46.9]} 22. bxc4 {[%clk 0:01:54.2]} 22... f5
{[%clk 0:01:45.2]} 23. Red1 {[%clk 0:01:49.5]} 23... Qe5 {[%clk 0:01:27.6]} 24.
exf5 {[%clk 0:01:47.1]} 24... gxf5 {[%clk 0:01:25.7]} 25. Bf3 {[%clk 0:01:37.5]}
25... f4 {[%clk 0:01:21.8]} 26. Kf1 {[%clk 0:01:32.8]} 26... fxg3 {[%clk
0:01:20.8]} 27. hxg3 {[%clk 0:01:31.7]} 27... Qf6 {[%clk 0:01:06.8]} 28. Kg2
{[%clk 0:01:30]} 28... Qg5 {[%clk 0:00:54.6]} 29. Qd2 {[%clk 0:01:26]} 29... Bd4
{[%clk 0:00:50.3]} 30. Qxg5+ {[%clk 0:01:23]} 30... hxg5 {[%clk 0:00:49.9]} 31.
Kf1 {[%clk 0:01:21.7]} 31... Kg7 {[%clk 0:00:47.5]} 32. Re1 {[%clk 0:01:20.7]}
32... Kf6 {[%clk 0:00:45.7]} 33. Rxe7 {[%clk 0:01:19.2]} 33... Rxe7 {[%clk
0:00:45.1]} 34. Re1 {[%clk 0:01:19.6]} 34... Rxe1+ {[%clk 0:00:35.1]} 35. Kxe1
{[%clk 0:01:19.2]} 35... Ke5 {[%clk 0:00:35.1]} 36. Ke2 {[%clk 0:01:17.6]} 36...
a6 {[%clk 0:00:34.8]} 37. Bg4 {[%clk 0:01:15]} 37... b5 {[%clk 0:00:33.6]} 38.
f4+ {[%clk 0:01:07.3]} 38... gxf4 {[%clk 0:00:32.7]} 39. gxf4+ {[%clk
0:01:07.1]} 39... Kxf4 {[%clk 0:00:32.8]} 40. Bc8 {[%clk 0:01:06.1]} 40... bxc4
{[%clk 0:00:31.7]} 41. Bxa6 {[%clk 0:01:05.7]} 41... c3 {[%clk 0:00:30.1]} 42.
Kd3 {[%clk 0:01:05.4]} 42... Ke5 {[%clk 0:00:26.8]} 43. Bc4 {[%clk 0:01:04.8]}
43... Kf6 {[%clk 0:00:17.7]} 44. a4 {[%clk 0:01:03.9]} 44... Ke7 {[%clk
0:00:18]} 45. a5 {[%clk 0:01:03.6]} 45... Kd8 {[%clk 0:00:18.3]} 46. a6 {[%clk
0:01:03.6]} 46... Kc7 {[%clk 0:00:18.6]} 47. Kc2 {[%clk 0:01:03]} 47... Kb6
{[%clk 0:00:18.5]} 48. Kd3 {[%clk 0:01:03]} 48... Bf6 {[%clk 0:00:17.2]} 49. Kc2
{[%clk 0:01:01.7]} 49... Bd4 {[%clk 0:00:16.4]} 50. Kd3 {[%clk 0:01:01.5]} 50...
Be5 {[%clk 0:00:16.3]} 51. Kc2 {[%clk 0:01:01]} 51... Bf6 {[%clk 0:00:15.9]} 52.
Kd3 {[%clk 0:01:00.4]} 52... Bg7 {[%clk 0:00:16.4]} 53. Kc2 {[%clk 0:01:00]}
53... Bf6 {[%clk 0:00:16.1]} 54. Kd3 {[%clk 0:00:59.7]} 54... Bg7 {[%clk
0:00:16]} 1/2-1/2

[Event "*** Titled Tuesday Blitz"]
[Site "Chess.com"]
[Date "2020.12.29"]
[Round "9"]
[White "Storne89"]
[Black "rubhani"]
[Result "1-0"]
[WhiteElo "2633"]
[BlackElo "2492"]
[TimeControl "180+1"]
[EndTime "11:44:25 PST"]
[Termination "Storne89 won by resignation"]

1. e4 {[%clk 0:03:00.9]} 1... d5 {[%clk 0:02:57.4]} 2. exd5 {[%clk 0:03:00.7]}
2... Qxd5 {[%clk 0:02:58.3]} 3. Nc3 {[%clk 0:03:01.5]} 3... Qd8 {[%clk
0:02:58.5]} 4. d4 {[%clk 0:03:02.1]} 4... Nf6 {[%clk 0:02:59.2]} 5. Nf3 {[%clk
0:03:02.7]} 5... Bg4 {[%clk 0:02:50.1]} 6. Bc4 {[%clk 0:03:02.6]} 6... e6 {[%clk
0:02:50.1]} 7. Be3 {[%clk 0:02:56.2]} 7... Nbd7 {[%clk 0:02:49.5]} 8. h3 {[%clk
0:02:56.5]} 8... Bh5 {[%clk 0:02:49.6]} 9. g4 {[%clk 0:02:55.5]} 9... Bg6 {[%clk
0:02:50.1]} 10. Qe2 {[%clk 0:02:56.1]} 10... Nb6 {[%clk 0:02:31.8]} 11. Bb3
{[%clk 0:02:55.8]} 11... a5 {[%clk 0:02:26.1]} 12. a3 {[%clk 0:02:53.4]} 12...
a4 {[%clk 0:02:21.2]} 13. Ba2 {[%clk 0:02:53.1]} 13... Be7 {[%clk 0:02:17.1]}
14. O-O-O {[%clk 0:02:50]} 14... O-O {[%clk 0:02:15.2]} 15. Ne5 {[%clk
0:02:48.3]} 15... Nfd5 {[%clk 0:02:09.8]} 16. Nxd5 {[%clk 0:02:47.8]} 16... Nxd5
{[%clk 0:02:10.7]} 17. f4 {[%clk 0:02:45.6]} 17... c6 {[%clk 0:01:41.6]} 18. Bd2
{[%clk 0:02:28.1]} 18... Nf6 {[%clk 0:01:14.3]} 19. h4 {[%clk 0:02:18.9]} 19...
Be4 {[%clk 0:00:52]} 20. Rhe1 {[%clk 0:02:11.7]} 20... Qxd4 {[%clk 0:00:38.7]}
21. Bc3 {[%clk 0:02:07.9]} 21... Qb6 {[%clk 0:00:33.1]} 22. Nxf7 {[%clk
0:01:20.7]} 22... Nd5 {[%clk 0:00:23.1]} 23. Be5 {[%clk 0:01:11.5]} 23... Rxf7
{[%clk 0:00:21.4]} 24. Qxe4 {[%clk 0:01:11.5]} 24... Raf8 {[%clk 0:00:21.1]} 25.
h5 {[%clk 0:01:05.7]} 25... h6 {[%clk 0:00:16.4]} 26. Qg6 {[%clk 0:00:57]} 26...
Bf6 {[%clk 0:00:15.8]} 27. f5 {[%clk 0:00:48.8]} 27... Bxe5 {[%clk 0:00:15.1]}
28. Rxe5 {[%clk 0:00:48.2]} 28... Nf4 {[%clk 0:00:14.5]} 29. fxe6 {[%clk
0:00:38.3]} 29... Re7 {[%clk 0:00:13.2]} 30. Qe4 {[%clk 0:00:33.3]} 30... Qf2
{[%clk 0:00:13.4]} 31. Kb1 {[%clk 0:00:24.7]} 31... Ng2 {[%clk 0:00:12.7]} 32.
g5 {[%clk 0:00:22.6]} 32... Rf4 {[%clk 0:00:11.3]} 33. Qd3 {[%clk 0:00:20]}
33... hxg5 {[%clk 0:00:09.5]} 34. Qd8+ {[%clk 0:00:18.1]} 34... Rf8 {[%clk
0:00:09.3]} 35. Qxe7 {[%clk 0:00:17.6]} 1-0

[Event "*** Titled Tuesday Blitz"]
[Site "Chess.com"]
[Date "2020.12.29"]
[Round "9"]
[White "stephan97"]
[Black "NoGalloNoParty"]
[Result "0-1"]
[WhiteElo "2250"]
[BlackElo "2375"]
[TimeControl "180+1"]
[EndTime "11:44:25 PST"]
[Termination "NoGalloNoParty won by resignation"]

1. d4 {[%clk 0:03:00.9]} 1... Nf6 {[%clk 0:02:59.3]} 2. c4 {[%clk 0:03:00.9]}
2... e6 {[%clk 0:02:58.5]} 3. Nf3 {[%clk 0:03:00.3]} 3... Bb4+ {[%clk
0:02:55.9]} 4. Bd2 {[%clk 0:02:59.9]} 4... Qe7 {[%clk 0:02:52.6]} 5. e3 {[%clk
0:02:59.7]} 5... b6 {[%clk 0:02:51.4]} 6. Bd3 {[%clk 0:02:55.2]} 6... Bb7 {[%clk
0:02:50.8]} 7. O-O {[%clk 0:02:55.3]} 7... O-O {[%clk 0:02:50.4]} 8. Nc3 {[%clk
0:02:51.6]} 8... d6 {[%clk 0:02:46.1]} 9. Qc2 {[%clk 0:02:44.4]} 9... Nbd7
{[%clk 0:02:42.7]} 10. e4 {[%clk 0:02:43.6]} 10... Bxc3 {[%clk 0:02:33.1]} 11.
Bxc3 {[%clk 0:02:42.8]} 11... e5 {[%clk 0:02:33]} 12. d5 {[%clk 0:02:36.5]}
12... a5 {[%clk 0:02:31.1]} 13. a3 {[%clk 0:02:35.3]} 13... a4 {[%clk
0:02:29.5]} 14. Qe2 {[%clk 0:02:25.5]} 14... Nc5 {[%clk 0:02:28.4]} 15. Bc2
{[%clk 0:02:20.2]} 15... Ba6 {[%clk 0:02:14.7]} 16. Bb4 {[%clk 0:02:08.9]} 16...
Nfd7 {[%clk 0:02:13]} 17. g3 {[%clk 0:01:57.4]} 17... Rab8 {[%clk 0:02:02.8]}
18. Nh4 {[%clk 0:01:52.2]} 18... g6 {[%clk 0:02:01.4]} 19. Bc3 {[%clk
0:01:44.7]} 19... b5 {[%clk 0:01:57.1]} 20. Ng2 {[%clk 0:01:39.7]} 20... bxc4
{[%clk 0:01:55.9]} 21. f4 {[%clk 0:01:38.3]} 21... Nb3 {[%clk 0:01:18.7]} 22.
Rae1 {[%clk 0:01:33.1]} 22... Nd4 {[%clk 0:01:17.6]} 23. Qd1 {[%clk 0:01:25.5]}
23... Nc5 {[%clk 0:01:14.2]} 24. Bxd4 {[%clk 0:01:16.1]} 24... exd4 {[%clk
0:01:13.5]} 25. Qxd4 {[%clk 0:01:16.1]} 25... c3 {[%clk 0:01:08.2]} 26. Qxc3
{[%clk 0:00:57.6]} 26... Bxf1 {[%clk 0:01:06.5]} 27. Kxf1 {[%clk 0:00:58.5]}
27... Qd7 {[%clk 0:00:55.7]} 28. Kg1 {[%clk 0:00:53.3]} 28... Qb5 {[%clk
0:00:55.3]} 29. Ne3 {[%clk 0:00:51.9]} 29... Qxb2 {[%clk 0:00:54.1]} 30. Qc4
{[%clk 0:00:43.4]} 30... Qxa3 {[%clk 0:00:49.9]} 31. Ng4 {[%clk 0:00:43.4]}
31... Qb4 {[%clk 0:00:43]} 32. Qe2 {[%clk 0:00:41.7]} 32... Qd4+ {[%clk
0:00:39.4]} 33. Kh1 {[%clk 0:00:35.7]} 33... a3 {[%clk 0:00:38.5]} 34. Bb1
{[%clk 0:00:16.7]} 34... Rb2 {[%clk 0:00:36.7]} 35. Qf1 {[%clk 0:00:13.1]} 35...
a2 {[%clk 0:00:35.9]} 36. Bxa2 {[%clk 0:00:12.9]} 36... Rxa2 {[%clk 0:00:36.5]}
37. f5 {[%clk 0:00:13.5]} 37... Nxe4 {[%clk 0:00:34.5]} 38. f6 {[%clk
0:00:12.5]} 38... Nf2+ {[%clk 0:00:32.6]} 39. Nxf2 {[%clk 0:00:12.2]} 39... Qxf2
{[%clk 0:00:33.5]} 40. Qh3 {[%clk 0:00:10.2]} 40... Qxf6 {[%clk 0:00:32.4]} 0-1

[Event "*** Titled Tuesday Blitz"]
[Site "Chess.com"]
[Date "2020.12.29"]
[Round "9"]
[White "JoachimMouhamad"]
[Black "Babujj"]
[Result "1-0"]
[WhiteElo "2391"]
[BlackElo "2521"]
[TimeControl "180+1"]
[EndTime "11:44:27 PST"]
[Termination "JoachimMouhamad won by checkmate"]

1. e4 {[%clk 0:03:00.9]} 1... c5 {[%clk 0:03:00]} 2. Nf3 {[%clk 0:03:00.8]} 2...
d6 {[%clk 0:03:00.4]} 3. d4 {[%clk 0:03:01.1]} 3... cxd4 {[%clk 0:03:01.3]} 4.
Nxd4 {[%clk 0:03:01.8]} 4... Nf6 {[%clk 0:03:01.9]} 5. Nc3 {[%clk 0:03:02.1]}
5... g6 {[%clk 0:03:02.5]} 6. Be3 {[%clk 0:02:58.3]} 6... Bg7 {[%clk 0:03:02.6]}
7. f3 {[%clk 0:02:58.8]} 7... O-O {[%clk 0:03:02.5]} 8. Qd2 {[%clk 0:02:59.4]}
8... Nc6 {[%clk 0:03:02.8]} 9. O-O-O {[%clk 0:02:59.7]} 9... Bd7 {[%clk
0:03:03.1]} 10. g4 {[%clk 0:02:58.7]} 10... Rc8 {[%clk 0:03:01.3]} 11. h4 {[%clk
0:02:57.2]} 11... h5 {[%clk 0:03:00.4]} 12. g5 {[%clk 0:02:42.3]} 12... Nh7
{[%clk 0:02:53]} 13. f4 {[%clk 0:02:32.8]} 13... Re8 {[%clk 0:02:45]} 14. Be2
{[%clk 0:02:12.3]} 14... Qa5 {[%clk 0:02:36]} 15. Kb1 {[%clk 0:02:01.8]} 15...
Nxd4 {[%clk 0:02:09.7]} 16. Bxd4 {[%clk 0:02:01.2]} 16... Nf8 {[%clk 0:01:47.4]}
17. Bxg7 {[%clk 0:01:54.7]} 17... Kxg7 {[%clk 0:01:48.3]} 18. Rhf1 {[%clk
0:01:34.3]} 18... b5 {[%clk 0:01:00.6]} 19. f5 {[%clk 0:01:31.8]} 19... b4
{[%clk 0:01:00.1]} 20. Nd5 {[%clk 0:01:30.3]} 20... e6 {[%clk 0:00:50.5]} 21.
Ne7 {[%clk 0:01:21.4]} 21... exf5 {[%clk 0:00:39.1]} 22. exf5 {[%clk 0:01:18.1]}
22... Bxf5 {[%clk 0:00:37]} 23. Nxf5+ {[%clk 0:01:15]} 23... gxf5 {[%clk
0:00:37.9]} 24. Bxh5 {[%clk 0:01:13.9]} 24... Rc6 {[%clk 0:00:33.3]} 25. Bf3
{[%clk 0:01:09.9]} 25... Ra6 {[%clk 0:00:33.1]} 26. Bd5 {[%clk 0:01:10.1]} 26...
Re5 {[%clk 0:00:31.9]} 27. Bb3 {[%clk 0:01:09.2]} 27... d5 {[%clk 0:00:29.8]}
28. Qd4 {[%clk 0:01:04.7]} 28... Qc7 {[%clk 0:00:29.7]} 29. Rxf5 {[%clk
0:01:00.4]} 29... Re6 {[%clk 0:00:27.5]} 30. Bxd5 {[%clk 0:00:52.7]} 30... Re7
{[%clk 0:00:27.4]} 31. Re1 {[%clk 0:00:45.7]} 31... Qc5 {[%clk 0:00:17.9]} 32.
Rxf7+ {[%clk 0:00:36]} 32... Kg6 {[%clk 0:00:15.6]} 33. Qd3+ {[%clk 0:00:32.4]}
33... Kh5 {[%clk 0:00:15.8]} 34. Bf3+ {[%clk 0:00:26.4]} 34... Kxh4 {[%clk
0:00:14.9]} 35. Rh1+ {[%clk 0:00:24.7]} 35... Kg3 {[%clk 0:00:10.8]} 36. Bd1+
{[%clk 0:00:20.7]} 36... Re3 {[%clk 0:00:10.8]} 37. Rf3+ {[%clk 0:00:20.9]}
37... Kg2 {[%clk 0:00:09.1]} 38. Qf1# {[%clk 0:00:19.8]} 1-0

[Event "*** Titled Tuesday Blitz"]
[Site "Chess.com"]
[Date "2020.12.29"]
[Round "9"]
[White "MumLookatMeNow"]
[Black "Dinamo81"]
[Result "0-1"]
[WhiteElo "2519"]
[BlackElo "2668"]
[TimeControl "180+1"]
[EndTime "11:44:34 PST"]
[Termination "Dinamo81 won by resignation"]

1. e4 {[%clk 0:03:00.9]} 1... c5 {[%clk 0:02:58.6]} 2. d4 {[%clk 0:03:00.5]}
2... cxd4 {[%clk 0:02:58]} 3. c3 {[%clk 0:03:01]} 3... dxc3 {[%clk 0:02:58.1]}
4. Nxc3 {[%clk 0:03:01.9]} 4... d6 {[%clk 0:02:58.3]} 5. Nf3 {[%clk 0:03:02.5]}
5... Nc6 {[%clk 0:02:58.7]} 6. Bc4 {[%clk 0:03:02.9]} 6... a6 {[%clk 0:02:59]}
7. O-O {[%clk 0:03:02.6]} 7... Nf6 {[%clk 0:02:59.4]} 8. Bf4 {[%clk 0:03:02.7]}
8... Bg4 {[%clk 0:02:57.2]} 9. h3 {[%clk 0:03:03]} 9... Bxf3 {[%clk 0:02:53.7]}
10. Qxf3 {[%clk 0:03:03.9]} 10... e6 {[%clk 0:02:50.6]} 11. Rfd1 {[%clk
0:03:04]} 11... Qb8 {[%clk 0:02:47.7]} 12. Be2 {[%clk 0:03:03.4]} 12... Be7
{[%clk 0:02:46.4]} 13. Qg3 {[%clk 0:03:03]} 13... O-O {[%clk 0:02:46.3]} 14.
Rxd6 {[%clk 0:03:03.4]} 14... Bxd6 {[%clk 0:02:44.2]} 15. Bxd6 {[%clk
0:03:04.3]} 15... Qa7 {[%clk 0:02:44.3]} 16. Bxf8 {[%clk 0:03:04.2]} 16... Rxf8
{[%clk 0:02:45]} 17. Rd1 {[%clk 0:03:04.5]} 17... Qc5 {[%clk 0:02:36.9]} 18. Kh2
{[%clk 0:02:59]} 18... e5 {[%clk 0:02:25.5]} 19. Bd3 {[%clk 0:02:07.4]} 19...
Rd8 {[%clk 0:02:21.4]} 20. Bc2 {[%clk 0:02:00.5]} 20... Rxd1 {[%clk 0:02:19.1]}
21. Bxd1 {[%clk 0:02:01.4]} 21... Qd4 {[%clk 0:02:12.3]} 22. Bf3 {[%clk
0:01:36.5]} 22... Kf8 {[%clk 0:01:45.6]} 23. Qg5 {[%clk 0:01:12]} 23... h6
{[%clk 0:01:43.3]} 24. Qg3 {[%clk 0:01:07.5]} 24... b5 {[%clk 0:01:23]} 25. a3
{[%clk 0:00:49.8]} 25... b4 {[%clk 0:01:17.2]} 26. axb4 {[%clk 0:00:48.9]} 26...
Nxb4 {[%clk 0:01:18.1]} 27. Bg4 {[%clk 0:00:32.9]} 27... g6 {[%clk 0:00:54.1]}
28. f4 {[%clk 0:00:17.9]} 28... Nd3 {[%clk 0:00:47]} 29. fxe5 {[%clk 0:00:12.9]}
29... Nxg4+ {[%clk 0:00:41.1]} 30. Qxg4 {[%clk 0:00:11.2]} 30... Qxe5+ {[%clk
0:00:40.5]} 31. Qg3 {[%clk 0:00:11]} 31... Qxg3+ {[%clk 0:00:39.5]} 32. Kxg3
{[%clk 0:00:11.1]} 32... Nxb2 {[%clk 0:00:40.4]} 33. Kf4 {[%clk 0:00:11]} 33...
Ke7 {[%clk 0:00:36.1]} 34. Ke5 {[%clk 0:00:11.2]} 34... Nd3+ {[%clk 0:00:31.9]}
35. Kd4 {[%clk 0:00:09]} 35... Nf4 {[%clk 0:00:31.8]} 36. g3 {[%clk 0:00:07.3]}
36... Nxh3 {[%clk 0:00:31.4]} 37. Nd5+ {[%clk 0:00:07.6]} 37... Kd7 {[%clk
0:00:26.7]} 38. Kc5 {[%clk 0:00:05]} 38... Ng5 {[%clk 0:00:25.4]} 39. e5 {[%clk
0:00:04]} 39... Ne4+ {[%clk 0:00:25]} 40. Kb6 {[%clk 0:00:03.9]} 40... Ke6
{[%clk 0:00:22.4]} 0-1

[Event "*** Titled Tuesday Blitz"]
[Site "Chess.com"]
[Date "2020.12.29"]
[Round "9"]
[White "NiranjanNavalgund"]
[Black "arctic_t00"]
[Result "0-1"]
[WhiteElo "2496"]
[BlackElo "2630"]
[TimeControl "180+1"]
[EndTime "11:44:34 PST"]
[Termination "arctic_t00 won by resignation"]

1. d4 {[%clk 0:03:00.1]} 1... Nf6 {[%clk 0:02:59.6]} 2. c4 {[%clk 0:02:59.9]}
2... g6 {[%clk 0:02:59.7]} 3. Nc3 {[%clk 0:02:59.7]} 3... Bg7 {[%clk 0:03:00]}
4. e4 {[%clk 0:02:57.9]} 4... d6 {[%clk 0:03:00.4]} 5. Bd3 {[%clk 0:02:57.4]}
5... O-O {[%clk 0:02:59.9]} 6. Nge2 {[%clk 0:02:56.8]} 6... c5 {[%clk
0:02:47.8]} 7. d5 {[%clk 0:02:56.6]} 7... Nbd7 {[%clk 0:02:39.3]} 8. f4 {[%clk
0:02:51.5]} 8... a6 {[%clk 0:02:33.8]} 9. O-O {[%clk 0:02:48.3]} 9... b5 {[%clk
0:02:33.1]} 10. cxb5 {[%clk 0:02:48.3]} 10... Nb6 {[%clk 0:02:24.3]} 11. bxa6
{[%clk 0:02:47.2]} 11... Bxa6 {[%clk 0:02:23.9]} 12. Bxa6 {[%clk 0:02:43.6]}
12... Rxa6 {[%clk 0:02:24.8]} 13. Kh1 {[%clk 0:02:42]} 13... Qa8 {[%clk
0:02:20.2]} 14. f5 {[%clk 0:02:37]} 14... Nc4 {[%clk 0:02:08.3]} 15. fxg6 {[%clk
0:02:20.4]} 15... hxg6 {[%clk 0:02:07.6]} 16. Ng3 {[%clk 0:02:08.5]} 16... Qb7
{[%clk 0:01:52.3]} 17. Qc2 {[%clk 0:02:07.9]} 17... Ng4 {[%clk 0:01:46.5]} 18.
Qe2 {[%clk 0:02:04.1]} 18... Nge5 {[%clk 0:01:40.6]} 19. Rb1 {[%clk 0:01:59.7]}
19... Rb6 {[%clk 0:01:26.2]} 20. b3 {[%clk 0:01:59.1]} 20... Na5 {[%clk
0:01:16]} 21. Bd2 {[%clk 0:01:53.9]} 21... Qa6 {[%clk 0:01:05.8]} 22. Qxa6
{[%clk 0:01:36]} 22... Rxa6 {[%clk 0:01:05.9]} 23. Nb5 {[%clk 0:01:32.1]} 23...
Rb8 {[%clk 0:00:58.7]} 24. a4 {[%clk 0:01:31.5]} 24... c4 {[%clk 0:00:46.7]} 25.
bxc4 {[%clk 0:00:59.7]} 25... Naxc4 {[%clk 0:00:45.2]} 26. Bc3 {[%clk
0:00:54.8]} 26... Rxa4 {[%clk 0:00:43.4]} 27. Ne2 {[%clk 0:00:51.7]} 27... Ne3
{[%clk 0:00:32.6]} 28. Rfc1 {[%clk 0:00:48.4]} 28... Rxe4 {[%clk 0:00:29.9]} 29.
Nbd4 {[%clk 0:00:42.8]} 29... Rxb1 {[%clk 0:00:28.5]} 30. Rxb1 {[%clk
0:00:43.7]} 30... Nxd5 {[%clk 0:00:26.4]} 31. Bd2 {[%clk 0:00:32.3]} 31... Nc4
{[%clk 0:00:22.3]} 32. Be1 {[%clk 0:00:23.4]} 32... Bxd4 {[%clk 0:00:21.5]} 33.
Nxd4 {[%clk 0:00:24.3]} 33... Rxd4 {[%clk 0:00:20.5]} 34. Kg1 {[%clk 0:00:23]}
34... f6 {[%clk 0:00:19.2]} 35. Kf2 {[%clk 0:00:22.3]} 35... Kf7 {[%clk
0:00:19.5]} 36. h3 {[%clk 0:00:22.2]} 36... Rd3 {[%clk 0:00:19.3]} 37. Rb7
{[%clk 0:00:23.1]} 37... Ne5 {[%clk 0:00:16.5]} 38. Ke2 {[%clk 0:00:22.8]} 38...
Ra3 {[%clk 0:00:16]} 39. Bd2 {[%clk 0:00:22]} 39... Ra2 {[%clk 0:00:16]} 40. g4
{[%clk 0:00:19.8]} 40... Nc4 {[%clk 0:00:14.4]} 0-1